[Event "Titled Tuesday Blitz May 30 Early 2023"]
[White "Staudenhocker43"]
[Black "Bryakin, Mikhail"]
[BlackFideId "4165314"]
[WhiteElo "2528"]
[BlackElo "2467"]
[Result "0-1"]
[Round "04"]
[TimeControl "180+2"]
[Date "2023.05.30"]
[WhiteClock "0:00:00"]
[BlackClock "0:01:18"]

1. e4 {[%clk 0:03:00]}  Nc6 {[%clk 0:02:46]} 2. Nf3 {[%clk 0:03:00]}  d5 {[%clk 0:02:46]} 3. exd5 {[%clk 0:03:00]}  Qxd5 {[%clk 0:02:47]} 4. Nc3 {[%clk 0:03:00]}  Qd6 {[%clk 0:02:48]} 5. Nb5 {[%clk 0:02:34]}  Qd8 {[%clk 0:02:47]} 6. d4 {[%clk 0:02:34]}  a6 {[%clk 0:02:44]} 7. Nc3 {[%clk 0:02:33]}  Bg4 {[%clk 0:02:45]} 8. d5 {[%clk 0:02:31]}  Ne5 {[%clk 0:02:45]} 9. Be2 {[%clk 0:02:31]}  Nxf3+ {[%clk 0:02:45]} 10. Bxf3 {[%clk 0:02:32]}  Bxf3 {[%clk 0:02:46]} 11. Qxf3 {[%clk 0:02:33]}  Nf6 {[%clk 0:02:46]} 12. Bg5 {[%clk 0:02:32]}  Qd7 {[%clk 0:02:47]} 13. O-O-O {[%clk 0:02:29]}  O-O-O {[%clk 0:02:47]} 14. h3 {[%clk 0:02:20]}  h6 {[%clk 0:02:48]} 15. Bf4 {[%clk 0:02:08]}  g5 {[%clk 0:02:48]} 16. Be5 {[%clk 0:02:07]}  Bg7 {[%clk 0:02:49]} 17. Rhe1 {[%clk 0:02:07]}  Rhe8 {[%clk 0:02:49]} 18. Kb1 {[%clk 0:02:06]}  Rg8 {[%clk 0:02:40]} 19. a3 {[%clk 0:02:04]}  g4 {[%clk 0:02:40]} 20. hxg4 {[%clk 0:02:03]}  Nxg4 {[%clk 0:02:38]} 21. Bg3 {[%clk 0:01:54]}  Rdf8 {[%clk 0:02:29]} 22. Re4 {[%clk 0:01:51]}  Nf6 {[%clk 0:02:29]} 23. Rc4 {[%clk 0:01:51]}  Ne8 {[%clk 0:02:29]} 24. Qe3 {[%clk 0:01:40]}  Kb8 {[%clk 0:02:26]} 25. Ne4 {[%clk 0:01:29]}  Nd6 {[%clk 0:02:26]} 26. Nxd6 {[%clk 0:01:22]}  exd6 {[%clk 0:02:27]} 27. Re4 {[%clk 0:01:21]}  Re8 {[%clk 0:02:25]} 28. Re1 {[%clk 0:01:21]}  Rxe4 {[%clk 0:02:25]} 29. Qxe4 {[%clk 0:01:22]}  Bf6 {[%clk 0:02:25]} 30. c3 {[%clk 0:01:19]}  Qb5 {[%clk 0:02:22]} 31. Ka2 {[%clk 0:01:17]}  a5 {[%clk 0:02:06]} 32. a4 {[%clk 0:01:05]}  Qd7 {[%clk 0:02:04]} 33. Ka3 {[%clk 0:00:57]}  h5 {[%clk 0:02:02]} 34. Re2 {[%clk 0:00:49]}  b6 {[%clk 0:02:02]} 35. Bf4 {[%clk 0:00:40]}  Kb7 {[%clk 0:02:02]} 36. g3 {[%clk 0:00:39]}  h4 {[%clk 0:01:59]} 37. gxh4 {[%clk 0:00:36]}  Rg4 {[%clk 0:02:00]} 38. Qf3 {[%clk 0:00:18]}  Be5 {[%clk 0:01:59]} 39. Re4 {[%clk 0:00:17]}  Bh8 {[%clk 0:01:48]} 40. Bg3 {[%clk 0:00:14]}  Rg8 {[%clk 0:01:45]} 41. Rf4 {[%clk 0:00:13]}  f6 {[%clk 0:01:39]} 42. Re4 {[%clk 0:00:12]}  f5 {[%clk 0:01:38]} 43. Re6 {[%clk 0:00:12]}  Rg4 {[%clk 0:01:34]} 44. b3 {[%clk 0:00:08]}  Qh7 {[%clk 0:01:31]} 45. Re2 {[%clk 0:00:05]}  Rg8 {[%clk 0:01:28]} 46. Qd3 {[%clk 0:00:05]}  Qg7 {[%clk 0:01:25]} 47. Rc2 {[%clk 0:00:03]}  Qf7 {[%clk 0:01:25]} 48. Qc4 {[%clk 0:00:03]}  Kb8 {[%clk 0:01:21]} 49. Re2 {[%clk 0:00:02]}  Bf6 {[%clk 0:01:20]} 50. h5 {[%clk 0:00:02]}  Bg5 {[%clk 0:01:20]} 51. Bf4 {[%clk 0:00:02]}  Bxf4 {[%clk 0:01:19]} 52. Qxf4 {[%clk 0:00:03]}  Qxh5 {[%clk 0:01:19]} 53. Re7 {[%clk 0:00:00]}  Qd1 {[%clk 0:01:18]} 0-1


[Site "https://www.chess.com"]

[Event "Titled Tuesday Blitz May 30 Early 2023"]
[White "Bruedigam, Martin"]
[Black "Papasimakopoulos, Alexandros"]
[WhiteFideId "24608033"]
[BlackFideId "4244125"]
[WhiteElo "2331"]
[BlackElo "2359"]
[Result "0-1"]
[Round "04"]
[TimeControl "180+2"]
[Date "2023.05.30"]
[WhiteClock "0:02:05"]
[BlackClock "0:01:53"]

1. d4 {[%clk 0:03:00]}  Nf6 {[%clk 0:02:59]} 2. c4 {[%clk 0:03:01]}  e6 {[%clk 0:02:59]} 3. Nc3 {[%clk 0:03:01]}  Bb4 {[%clk 0:02:59]} 4. Bd2 {[%clk 0:03:02]}  O-O {[%clk 0:02:57]} 5. Nf3 {[%clk 0:03:01]}  d6 {[%clk 0:02:56]} 6. e3 {[%clk 0:03:00]}  Re8 {[%clk 0:02:55]} 7. Be2 {[%clk 0:02:58]}  e5 {[%clk 0:02:55]} 8. O-O {[%clk 0:02:56]}  e4 {[%clk 0:02:51]} 9. Nxe4 {[%clk 0:02:55]}  Nxe4 {[%clk 0:02:42]} 10. Bxb4 {[%clk 0:02:54]}  Nc6 {[%clk 0:02:42]} 11. Qc2 {[%clk 0:02:49]}  Nxb4 {[%clk 0:02:41]} 12. Qb1 {[%clk 0:02:38]}  Bf5 {[%clk 0:02:37]} 13. Qc1 {[%clk 0:02:25]}  c5 {[%clk 0:02:27]} 14. Rd1 {[%clk 0:02:24]}  Qf6 {[%clk 0:02:24]} 15. a3 {[%clk 0:02:22]}  Nc6 {[%clk 0:02:23]} 16. d5 {[%clk 0:02:14]}  Ne5 {[%clk 0:02:18]} 17. Nxe5 {[%clk 0:02:10]}  Qxe5 {[%clk 0:02:12]} 18. Bd3 {[%clk 0:02:10]}  Bg6 {[%clk 0:01:59]} 19. Bxe4 {[%clk 0:02:09]}  Qxe4 {[%clk 0:01:55]} 20. Qd2 {[%clk 0:02:05]}  Qxc4 {[%clk 0:01:53]} 0-1


[Site "https://www.chess.com"]

[Event "Titled Tuesday Blitz May 30 Early 2023"]
[White "Horak, Martin"]
[Black "Samunenkov, Ihor"]
[WhiteFideId "367095"]
[BlackFideId "14187086"]
[WhiteElo "2091"]
[BlackElo "2457"]
[Result "0-1"]
[Round "04"]
[TimeControl "180+2"]
[Date "2023.05.30"]
[WhiteClock "0:00:08"]
[BlackClock "0:00:39"]

1. d4 {[%clk 0:03:00]}  d5 {[%clk 0:02:59]} 2. c4 {[%clk 0:03:00]}  e6 {[%clk 0:02:59]} 3. Nf3 {[%clk 0:03:00]}  Nf6 {[%clk 0:02:58]} 4. Nc3 {[%clk 0:03:00]}  a6 {[%clk 0:02:58]} 5. cxd5 {[%clk 0:02:59]}  exd5 {[%clk 0:02:59]} 6. Bf4 {[%clk 0:03:00]}  Bd6 {[%clk 0:02:59]} 7. Bxd6 {[%clk 0:02:59]}  Qxd6 {[%clk 0:03:00]} 8. e3 {[%clk 0:03:00]}  O-O {[%clk 0:03:00]} 9. Bd3 {[%clk 0:03:00]}  Bg4 {[%clk 0:02:58]} 10. Qc2 {[%clk 0:02:58]}  Bxf3 {[%clk 0:02:49]} 11. gxf3 {[%clk 0:02:59]}  Nbd7 {[%clk 0:02:49]} 12. O-O {[%clk 0:02:49]}  c5 {[%clk 0:02:45]} 13. dxc5 {[%clk 0:02:44]}  Nxc5 {[%clk 0:02:46]} 14. Ne2 {[%clk 0:02:43]}  Rac8 {[%clk 0:02:34]} 15. Qd2 {[%clk 0:02:43]}  Qe5 {[%clk 0:02:23]} 16. Nd4 {[%clk 0:02:33]}  Ne6 {[%clk 0:02:00]} 17. Nf5 {[%clk 0:01:44]}  Ng5 {[%clk 0:01:42]} 18. Kg2 {[%clk 0:01:39]}  Nfe4 {[%clk 0:01:26]} 19. fxe4 {[%clk 0:01:03]}  dxe4 {[%clk 0:01:25]} 20. f4 {[%clk 0:00:58]}  Qxf5 {[%clk 0:01:17]} 21. fxg5 {[%clk 0:00:50]}  Qxg5+ {[%clk 0:01:17]} 22. Kh1 {[%clk 0:00:49]}  Rcd8 {[%clk 0:01:11]} 23. Rg1 {[%clk 0:00:35]}  Rxd3 {[%clk 0:01:10]} 24. Qxd3 {[%clk 0:00:30]}  Qxg1+ {[%clk 0:01:09]} 25. Kxg1 {[%clk 0:00:31]}  exd3 {[%clk 0:01:10]} 26. Kf2 {[%clk 0:00:30]}  Rc8 {[%clk 0:01:08]} 27. Rd1 {[%clk 0:00:27]}  Rc2+ {[%clk 0:01:08]} 28. Kf3 {[%clk 0:00:28]}  Rxb2 {[%clk 0:00:59]} 29. Rxd3 {[%clk 0:00:27]}  g6 {[%clk 0:00:59]} 30. a4 {[%clk 0:00:18]}  Rxh2 {[%clk 0:00:59]} 31. Rb3 {[%clk 0:00:18]}  Ra2 {[%clk 0:00:59]} 32. Rb4 {[%clk 0:00:17]}  a5 {[%clk 0:00:58]} 33. Rxb7 {[%clk 0:00:17]}  Rxa4 {[%clk 0:00:58]} 34. e4 {[%clk 0:00:17]}  Rb4 {[%clk 0:00:56]} 35. Ra7 {[%clk 0:00:17]}  a4 {[%clk 0:00:56]} 36. Kf4 {[%clk 0:00:18]}  h5 {[%clk 0:00:49]} 37. Ke5 {[%clk 0:00:12]}  h4 {[%clk 0:00:49]} 38. Kf6 {[%clk 0:00:12]}  Rxe4 {[%clk 0:00:48]} 39. Ra8+ {[%clk 0:00:12]}  Kh7 {[%clk 0:00:48]} 40. Kxf7 {[%clk 0:00:12]}  h3 {[%clk 0:00:48]} 41. Kf6 {[%clk 0:00:09]}  h2 {[%clk 0:00:46]} 42. Ra7+ {[%clk 0:00:09]}  Kh6 {[%clk 0:00:46]} 43. Ra8 {[%clk 0:00:09]}  Rf4+ {[%clk 0:00:41]} 44. Ke5 {[%clk 0:00:09]}  Rf7 {[%clk 0:00:41]} 45. Ke6 {[%clk 0:00:08]}  h1=Q {[%clk 0:00:39]} 0-1


[Site "https://www.chess.com"]

[Event "Titled Tuesday Blitz May 30 Early 2023"]
[White "Shukhman, Anna"]
[Black "Goltsev, Dmitry"]
[WhiteFideId "54180058"]
[BlackFideId "24176710"]
[WhiteElo "2235"]
[BlackElo "2356"]
[Result "1-0"]
[Round "04"]
[TimeControl "180+2"]
[Date "2023.05.30"]
[WhiteClock "0:01:22"]
[BlackClock "0:00:52"]

1. e4 {[%clk 0:03:00]}  e6 {[%clk 0:02:42]} 2. d4 {[%clk 0:03:00]}  d5 {[%clk 0:02:42]} 3. Nc3 {[%clk 0:02:59]}  c5 {[%clk 0:02:42]} 4. exd5 {[%clk 0:02:56]}  exd5 {[%clk 0:02:43]} 5. Nf3 {[%clk 0:02:56]}  Nf6 {[%clk 0:02:43]} 6. Be2 {[%clk 0:02:54]}  Nc6 {[%clk 0:02:43]} 7. O-O {[%clk 0:02:53]}  Bd6 {[%clk 0:02:40]} 8. dxc5 {[%clk 0:02:53]}  Bxc5 {[%clk 0:02:40]} 9. Bg5 {[%clk 0:02:52]}  O-O {[%clk 0:02:37]} 10. Bxf6 {[%clk 0:02:48]}  Qxf6 {[%clk 0:02:38]} 11. Qxd5 {[%clk 0:02:47]}  Bb6 {[%clk 0:02:38]} 12. Rad1 {[%clk 0:02:43]}  Bg4 {[%clk 0:02:36]} 13. h3 {[%clk 0:02:42]}  Bf5 {[%clk 0:02:34]} 14. Bd3 {[%clk 0:02:36]}  Ne7 {[%clk 0:02:28]} 15. Qe5 {[%clk 0:02:31]}  Qxe5 {[%clk 0:02:08]} 16. Nxe5 {[%clk 0:02:30]}  Be6 {[%clk 0:02:07]} 17. Be4 {[%clk 0:02:29]}  Rab8 {[%clk 0:02:03]} 18. Nd7 {[%clk 0:02:27]}  Bxd7 {[%clk 0:02:00]} 19. Rxd7 {[%clk 0:02:28]}  Nc6 {[%clk 0:02:00]} 20. Rfd1 {[%clk 0:02:15]}  Rfe8 {[%clk 0:01:58]} 21. Rxb7 {[%clk 0:01:59]}  Nd4 {[%clk 0:01:46]} 22. Rxb8 {[%clk 0:01:55]}  Rxb8 {[%clk 0:01:47]} 23. Nd5 {[%clk 0:01:32]}  Bc5 {[%clk 0:01:43]} 24. b4 {[%clk 0:01:30]}  Re8 {[%clk 0:01:17]} 25. bxc5 {[%clk 0:01:27]}  Rxe4 {[%clk 0:01:12]} 26. Nc3 {[%clk 0:01:26]}  Rf4 {[%clk 0:00:52]} 27. g3 {[%clk 0:01:24]}  Nf3+ {[%clk 0:00:52]} 28. Kg2 {[%clk 0:01:23]}  Rc4 {[%clk 0:00:52]} 29. Rd8# {[%clk 0:01:22]} 1-0


[Site "https://www.chess.com"]

[Event "Titled Tuesday Blitz May 30 Early 2023"]
[White "Oleksiyenko, Mykhaylo"]
[Black "LangesNasenhaar"]
[WhiteFideId "4152417"]
[WhiteElo "2551"]
[BlackElo "2506"]
[Result "1-0"]
[Round "04"]
[TimeControl "180+2"]
[Date "2023.05.30"]
[WhiteClock "0:00:45"]
[BlackClock "0:00:09"]

1. e4 {[%clk 0:03:00]}  d6 {[%clk 0:02:58]} 2. d4 {[%clk 0:03:00]}  Nf6 {[%clk 0:02:58]} 3. Nc3 {[%clk 0:03:00]}  Nbd7 {[%clk 0:02:59]} 4. f4 {[%clk 0:03:00]}  e5 {[%clk 0:02:59]} 5. Nf3 {[%clk 0:03:00]}  exd4 {[%clk 0:03:00]} 6. Qxd4 {[%clk 0:03:01]}  c6 {[%clk 0:03:00]} 7. Be3 {[%clk 0:03:01]}  d5 {[%clk 0:03:00]} 8. e5 {[%clk 0:02:37]}  Ng4 {[%clk 0:02:59]} 9. Bg1 {[%clk 0:02:34]}  Bc5 {[%clk 0:02:58]} 10. Qd2 {[%clk 0:02:32]}  Bxg1 {[%clk 0:02:50]} 11. Rxg1 {[%clk 0:02:30]}  Qb6 {[%clk 0:02:45]} 12. O-O-O {[%clk 0:01:56]}  Nxh2 {[%clk 0:02:17]} 13. Nd4 {[%clk 0:01:49]}  Nxf1 {[%clk 0:02:13]} 14. Rgxf1 {[%clk 0:01:48]}  Nc5 {[%clk 0:01:46]} 15. f5 {[%clk 0:01:19]}  Qd8 {[%clk 0:01:23]} 16. g4 {[%clk 0:01:14]}  Qh4 {[%clk 0:01:08]} 17. Rh1 {[%clk 0:01:01]}  Qe7 {[%clk 0:00:55]} 18. g5 {[%clk 0:00:48]}  Qxe5 {[%clk 0:00:35]} 19. Rhe1 {[%clk 0:00:47]}  Ne4 {[%clk 0:00:36]} 20. Nxe4 {[%clk 0:00:47]}  dxe4 {[%clk 0:00:37]} 21. Nxc6 {[%clk 0:00:46]}  bxc6 {[%clk 0:00:09]} 22. Qd8# {[%clk 0:00:45]} 1-0


[Site "https://www.chess.com"]

[Event "Titled Tuesday Blitz May 30 Early 2023"]
[White "Ljukin, Sergei"]
[Black "Levitskiy, Andrey"]
[WhiteFideId "14102200"]
[BlackFideId "14132885"]
[WhiteElo "2312"]
[BlackElo "2347"]
[Result "0-1"]
[Round "04"]
[TimeControl "180+2"]
[Date "2023.05.30"]
[WhiteClock "0:00:01"]
[BlackClock "0:00:26"]

1. e4 {[%clk 0:03:00]}  e6 {[%clk 0:03:00]} 2. d4 {[%clk 0:03:00]}  d5 {[%clk 0:03:00]} 3. Nc3 {[%clk 0:03:00]}  Bb4 {[%clk 0:03:00]} 4. e5 {[%clk 0:03:00]}  c5 {[%clk 0:03:00]} 5. a3 {[%clk 0:03:00]}  Bxc3+ {[%clk 0:03:01]} 6. bxc3 {[%clk 0:03:01]}  Qa5 {[%clk 0:03:01]} 7. Bd2 {[%clk 0:03:00]}  Qa4 {[%clk 0:03:02]} 8. Qg4 {[%clk 0:03:00]}  Kf8 {[%clk 0:03:02]} 9. Nf3 {[%clk 0:02:51]}  Ne7 {[%clk 0:02:54]} 10. Bd3 {[%clk 0:02:23]}  c4 {[%clk 0:02:51]} 11. Be2 {[%clk 0:02:23]}  Qxc2 {[%clk 0:02:52]} 12. O-O {[%clk 0:02:13]}  Nbc6 {[%clk 0:02:32]} 13. a4 {[%clk 0:02:05]}  b6 {[%clk 0:02:24]} 14. Qh3 {[%clk 0:01:33]}  Qf5 {[%clk 0:02:10]} 15. Qg3 {[%clk 0:01:32]}  h6 {[%clk 0:02:04]} 16. Rac1 {[%clk 0:01:26]}  Na5 {[%clk 0:01:53]} 17. Bd1 {[%clk 0:01:10]}  Nb3 {[%clk 0:01:49]} 18. Bc2 {[%clk 0:01:07]}  Nxc1 {[%clk 0:01:41]} 19. Rxc1 {[%clk 0:01:04]}  Qh5 {[%clk 0:01:41]} 20. Qf4 {[%clk 0:01:00]}  Ng6 {[%clk 0:01:22]} 21. Qg3 {[%clk 0:00:49]}  Bd7 {[%clk 0:01:19]} 22. Ra1 {[%clk 0:00:36]}  Ne7 {[%clk 0:01:16]} 23. h3 {[%clk 0:00:33]}  Nf5 {[%clk 0:00:56]} 24. Qh2 {[%clk 0:00:32]}  Qg6 {[%clk 0:00:53]} 25. g4 {[%clk 0:00:30]}  Nh4 {[%clk 0:00:46]} 26. Ne1 {[%clk 0:00:27]}  Qxc2 {[%clk 0:00:40]} 27. Nxc2 {[%clk 0:00:21]}  Nf3+ {[%clk 0:00:40]} 28. Kg2 {[%clk 0:00:21]}  Nxh2 {[%clk 0:00:41]} 29. Kxh2 {[%clk 0:00:21]}  Ke7 {[%clk 0:00:42]} 30. Bc1 {[%clk 0:00:19]}  Rhb8 {[%clk 0:00:39]} 31. Ba3+ {[%clk 0:00:19]}  Ke8 {[%clk 0:00:40]} 32. Bd6 {[%clk 0:00:19]}  Rb7 {[%clk 0:00:40]} 33. f4 {[%clk 0:00:19]}  a5 {[%clk 0:00:36]} 34. Na3 {[%clk 0:00:15]}  Bxa4 {[%clk 0:00:34]} 35. f5 {[%clk 0:00:09]}  Bd7 {[%clk 0:00:29]} 36. fxe6 {[%clk 0:00:08]}  Bxe6 {[%clk 0:00:28]} 37. Nb5 {[%clk 0:00:08]}  Kd7 {[%clk 0:00:27]} 38. Kg3 {[%clk 0:00:07]}  a4 {[%clk 0:00:26]} 39. Ra3 {[%clk 0:00:01]}  Ra5 {[%clk 0:00:26]} 0-1


[Site "https://www.chess.com"]

[Event "Titled Tuesday Blitz May 30 Early 2023"]
[White "Girya, Olga"]
[Black "Zheenbekov, Nurgazy"]
[WhiteFideId "4195752"]
[BlackFideId "13800485"]
[WhiteElo "2263"]
[BlackElo "1975"]
[Result "1-0"]
[Round "04"]
[TimeControl "180+2"]
[Date "2023.05.30"]
[WhiteClock "0:00:06"]
[BlackClock "0:00:00"]

1. d4 {[%clk 0:03:00]}  d5 {[%clk 0:02:07]} 2. c4 {[%clk 0:03:00]}  c6 {[%clk 0:02:07]} 3. Nf3 {[%clk 0:02:59]}  Nf6 {[%clk 0:02:07]} 4. Qb3 {[%clk 0:02:56]}  dxc4 {[%clk 0:02:03]} 5. Qxc4 {[%clk 0:02:56]}  Bg4 {[%clk 0:02:03]} 6. Nc3 {[%clk 0:02:53]}  Nbd7 {[%clk 0:01:49]} 7. Bf4 {[%clk 0:02:49]}  e6 {[%clk 0:01:49]} 8. e4 {[%clk 0:02:48]}  Be7 {[%clk 0:01:47]} 9. Be2 {[%clk 0:02:47]}  O-O {[%clk 0:01:46]} 10. O-O {[%clk 0:02:47]}  Bh5 {[%clk 0:01:24]} 11. h3 {[%clk 0:02:46]}  Bg6 {[%clk 0:01:23]} 12. Qb3 {[%clk 0:02:13]}  Qb6 {[%clk 0:01:20]} 13. Nd2 {[%clk 0:02:07]}  Qxd4 {[%clk 0:01:10]} 14. Qxb7 {[%clk 0:02:04]}  Qb6 {[%clk 0:01:10]} 15. Qxb6 {[%clk 0:02:00]}  axb6 {[%clk 0:01:10]} 16. Rfd1 {[%clk 0:01:37]}  Nc5 {[%clk 0:01:01]} 17. f3 {[%clk 0:01:32]}  Nh5 {[%clk 0:00:50]} 18. Be3 {[%clk 0:01:27]}  e5 {[%clk 0:00:50]} 19. Nc4 {[%clk 0:01:18]}  Ng3 {[%clk 0:00:36]} 20. Nxe5 {[%clk 0:01:16]}  Nxe2+ {[%clk 0:00:28]} 21. Nxe2 {[%clk 0:01:16]}  Rac8 {[%clk 0:00:23]} 22. Rac1 {[%clk 0:01:09]}  Bf6 {[%clk 0:00:17]} 23. Nxg6 {[%clk 0:01:08]}  hxg6 {[%clk 0:00:17]} 24. b3 {[%clk 0:01:00]}  Ra8 {[%clk 0:00:11]} 25. Rd2 {[%clk 0:00:55]}  Rfc8 {[%clk 0:00:07]} 26. Bxc5 {[%clk 0:00:51]}  bxc5 {[%clk 0:00:07]} 27. Rxc5 {[%clk 0:00:50]}  Rd8 {[%clk 0:00:06]} 28. Rxd8+ {[%clk 0:00:46]}  Rxd8 {[%clk 0:00:06]} 29. Rxc6 {[%clk 0:00:43]}  Rd2 {[%clk 0:00:06]} 30. Kf1 {[%clk 0:00:25]}  Rxa2 {[%clk 0:00:05]} 31. f4 {[%clk 0:00:23]}  Bb2 {[%clk 0:00:04]} 32. Rc8+ {[%clk 0:00:21]}  Kh7 {[%clk 0:00:03]} 33. Rc2 {[%clk 0:00:16]}  Ra1+ {[%clk 0:00:03]} 34. Kf2 {[%clk 0:00:17]}  Ba3 {[%clk 0:00:04]} 35. Rc7 {[%clk 0:00:16]}  Bd6 {[%clk 0:00:03]} 36. Rxf7 {[%clk 0:00:15]}  Rb1 {[%clk 0:00:03]} 37. e5 {[%clk 0:00:15]}  Bc5+ {[%clk 0:00:03]} 38. Kf3 {[%clk 0:00:11]}  Rxb3+ {[%clk 0:00:03]} 39. Kg4 {[%clk 0:00:12]}  Re3 {[%clk 0:00:04]} 40. Ng3 {[%clk 0:00:09]}  Re1 {[%clk 0:00:02]} 41. f5 {[%clk 0:00:08]}  Rxe5 {[%clk 0:00:02]} 42. fxg6+ {[%clk 0:00:07]}  Kxg6 {[%clk 0:00:02]} 43. Rf5 {[%clk 0:00:07]}  Rxf5 {[%clk 0:00:02]} 44. Nxf5 {[%clk 0:00:08]}  Bb4 {[%clk 0:00:03]} 45. Nh4+ {[%clk 0:00:08]}  Kf6 {[%clk 0:00:03]} 46. Nf3 {[%clk 0:00:09]}  Bc5 {[%clk 0:00:03]} 47. Ng5 {[%clk 0:00:09]}  Bb6 {[%clk 0:00:03]} 48. Ne4+ {[%clk 0:00:10]}  Ke5 {[%clk 0:00:03]} 49. Nd2 {[%clk 0:00:10]}  Kf6 {[%clk 0:00:02]} 50. Ne4+ {[%clk 0:00:10]}  Kf7 {[%clk 0:00:02]} 51. Nc3 {[%clk 0:00:10]}  Bc7 {[%clk 0:00:01]} 52. Kf5 {[%clk 0:00:10]}  Bd6 {[%clk 0:00:02]} 53. Ne4 {[%clk 0:00:10]}  g6+ {[%clk 0:00:02]} 54. Kg5 {[%clk 0:00:06]}  Be7+ {[%clk 0:00:02]} 55. Kh6 {[%clk 0:00:05]}  Bf8+ {[%clk 0:00:02]} 56. Kg5 {[%clk 0:00:04]}  Be7+ {[%clk 0:00:03]} 57. Kf4 {[%clk 0:00:04]}  Bf8 {[%clk 0:00:03]} 58. Ng5+ {[%clk 0:00:04]}  Kf6 {[%clk 0:00:03]} 59. Nh7+ {[%clk 0:00:04]}  Kg7 {[%clk 0:00:03]} 60. Nxf8 {[%clk 0:00:05]}  Kxf8 {[%clk 0:00:04]} 61. Kg5 {[%clk 0:00:05]}  Kg7 {[%clk 0:00:04]} 62. g3 {[%clk 0:00:05]}  Kf7 {[%clk 0:00:04]} 63. Kh6 {[%clk 0:00:06]}  Kf6 {[%clk 0:00:04]} 64. g4 {[%clk 0:00:06]}  Kf7 {[%clk 0:00:00]} 65. g5 {[%clk 0:00:06]} 1-0


[Site "https://www.chess.com"]

[Event "Titled Tuesday Blitz May 30 Early 2023"]
[White "Alexikov, Alexander"]
[Black "Agibileg, Uurtsaikh"]
[WhiteFideId "14103958"]
[BlackFideId "4901606"]
[WhiteElo "2186"]
[BlackElo "2353"]
[Result "0-1"]
[Round "04"]
[TimeControl "180+2"]
[Date "2023.05.30"]
[WhiteClock "0:00:00"]
[BlackClock "0:00:39"]

1. e4 {[%clk 0:03:00]}  c5 {[%clk 0:02:59]} 2. Nf3 {[%clk 0:03:00]}  e6 {[%clk 0:02:59]} 3. Nc3 {[%clk 0:02:59]}  Nc6 {[%clk 0:02:58]} 4. d4 {[%clk 0:02:59]}  cxd4 {[%clk 0:02:58]} 5. Nxd4 {[%clk 0:02:59]}  Nf6 {[%clk 0:02:58]} 6. Be2 {[%clk 0:02:57]}  Bb4 {[%clk 0:02:58]} 7. Nxc6 {[%clk 0:02:42]}  bxc6 {[%clk 0:02:57]} 8. e5 {[%clk 0:02:41]}  Nd5 {[%clk 0:02:57]} 9. Bd2 {[%clk 0:02:39]}  Nxc3 {[%clk 0:02:53]} 10. bxc3 {[%clk 0:02:31]}  Bc5 {[%clk 0:02:47]} 11. Bd3 {[%clk 0:02:28]}  d5 {[%clk 0:02:46]} 12. exd6 {[%clk 0:02:26]}  Qxd6 {[%clk 0:02:45]} 13. O-O {[%clk 0:02:24]}  O-O {[%clk 0:02:36]} 14. Re1 {[%clk 0:02:15]}  e5 {[%clk 0:02:30]} 15. Qe2 {[%clk 0:01:49]}  Re8 {[%clk 0:02:25]} 16. Rad1 {[%clk 0:01:47]}  Qf6 {[%clk 0:02:14]} 17. Be3 {[%clk 0:01:41]}  Bxe3 {[%clk 0:02:14]} 18. Qxe3 {[%clk 0:01:41]}  Bf5 {[%clk 0:02:14]} 19. f3 {[%clk 0:01:16]}  h6 {[%clk 0:02:03]} 20. Qc5 {[%clk 0:01:15]}  a5 {[%clk 0:01:46]} 21. a4 {[%clk 0:01:13]}  Bh7 {[%clk 0:01:34]} 22. Re3 {[%clk 0:01:08]}  Qf4 {[%clk 0:01:20]} 23. Bxh7+ {[%clk 0:00:49]}  Kxh7 {[%clk 0:01:16]} 24. Re4 {[%clk 0:00:49]}  Qf6 {[%clk 0:01:12]} 25. Rd6 {[%clk 0:00:48]}  Qg5 {[%clk 0:01:09]} 26. Qe3 {[%clk 0:00:41]}  Qe7 {[%clk 0:00:52]} 27. Rxc6 {[%clk 0:00:37]}  Rad8 {[%clk 0:00:51]} 28. Rc5 {[%clk 0:00:20]}  Rd1+ {[%clk 0:00:50]} 29. Kf2 {[%clk 0:00:19]}  Red8 {[%clk 0:00:51]} 30. Rexe5 {[%clk 0:00:13]}  R8d2+ {[%clk 0:00:48]} 31. Kg3 {[%clk 0:00:13]}  Qd6 {[%clk 0:00:48]} 32. Qe4+ {[%clk 0:00:12]}  g6 {[%clk 0:00:48]} 33. f4 {[%clk 0:00:08]}  Rg1 {[%clk 0:00:46]} 34. Rcd5 {[%clk 0:00:06]}  Rgxg2+ {[%clk 0:00:38]} 35. Qxg2 {[%clk 0:00:06]}  Rxg2+ {[%clk 0:00:38]} 36. Kxg2 {[%clk 0:00:00]}  Qc6 {[%clk 0:00:39]} 0-1


[Site "https://www.chess.com"]